bitfinex-derivatives/quotes_SOLF0:USTF0_20240918
["timestamp","ask_amount","ask_price","bid_price","bid_amount"]
[1726643718775,13.1724,131.49,131.46,3.8032]
[1726643720068,9.37,131.49,131.46,3.8032]
[1726643723270,13.1723,131.49,131.46,3.8032]
[1726643726372,13.1722,131.5,131.47,3.8029]
[1726643726574,13.1722,131.5,131.46,9.37]
[1726643726774,9.37,131.5,131.46,9.37]
[1726643726977,9.37,131.5,131.48,3.8026]
[1726643727773,9.37,131.5,131.41,6.62945854]
[1726643727774,9.37,131.49,131.47,3.8028]
[1726643728578,3.8021,131.5,131.47,3.8028]
[1726643728774,9.37,131.5,131.47,3.8028]
[1726643728974,8.4093,131.52,131.47,3.8028]
[1726643729173,9.37,131.5,131.47,3.8028]
[1726643730078,9.37,131.52,131.49,3.8021]
[1726643730382,9.37,131.52,131.47,9.37]
[1726643730683,9.37,131.51,131.48,3.8024]
[1726643732183,5.5066,131.57,131.49,9.37]
[1726643732184,9.37,131.54,131.49,9.37]
[1726643732376,9.37,131.53,131.48,9.37]
[1726643732978,13.1714,131.53,131.5,3.8019]
[1726643733179,9.37,131.53,131.48,9.37]
[1726643733682,9.37,131.51,131.49,3.8022]
[1726643737983,9.37,131.51,131.5,3.802]
[1726643739190,9.37,131.52,131.5,3.802]
[1726643739686,13.1715,131.52,131.49,3.8022]
[1726643739993,9.37,131.51,131.49,3.8022]
[1726643742400,9.37,131.52,131.49,3.8022]
[1726643745692,3.8013,131.53,131.49,3.8022]
[1726643745889,9.37,131.52,131.49,3.8022]
[1726643746094,13.1716,131.52,131.49,3.8022]
[1726643748693,3.8013,131.53,131.48,9.37]
[1726643748893,9.37,131.52,131.48,13.23192468]
[1726643749391,9.37,131.52,131.51,3.8018]
[1726643749795,9.37,131.52,131.5,3.8019]
[1726643757105,13.1715,131.52,131.5,3.8019]
[1726643760305,13.1715,131.52,131.49,3.8022]
[1726643762505,3.8018,131.51,131.49,3.8022]
[1726643762706,9.37,131.51,131.49,3.8022]
[1726643763499,9.37,131.51,131.45,2.6452]
[1726643763696,9.37,131.49,131.46,12.25978324]
[1726643763997,9.37,131.49,131.44,14.8772]
[1726643764195,9.37,131.49,131.47,3.8029]
[1726643765803,13.1722,131.5,131.47,3.8029]
[1726643767205,13.1718,131.51,131.47,9.37]
[1726643767405,3.8018,131.51,131.44,5.5072]
[1726643767605,3.8018,131.51,131.48,9.37]
[1726643767805,3.8018,131.51,131.48,13.1725]
[1726643768401,3.8018,131.51,131.48,3.8025]
[1726643768708,13.1721,131.5,131.47,3.8028]
[1726643769101,3.8021,131.5,131.47,3.8028]
[1726643769302,13.1721,131.5,131.47,3.8028]
[1726643770911,13.1725,131.49,131.44,5.5072]
[1726643771118,13.1725,131.49,131.45,5.35262731]
[1726643771412,13.1725,131.49,131.45,3.8033]
[1726643772422,13.1725,131.49,131.46,3.8032]
[1726643773311,3.8025,131.49,131.46,3.8032]
[1726643773611,13.1725,131.49,131.46,3.8032]
[1726643776220,13.1725,131.49,131.45,3.8034]
[1726643776719,3.8025,131.49,131.45,3.8034]
[1726643776919,9.37,131.48,131.45,3.8034]
[1726643779517,9.37,131.48,131.44,9.37]
[1726643779721,9.37,131.48,131.46,3.8032]
[1726643779924,9.37,131.48,131.44,9.37]
[1726643780123,9.37,131.48,131.45,9.15630154]
[1726643780321,9.37,131.48,131.45,3.8033]
[1726643782118,9.37,131.48,131.45,13.1733]
[1726643782520,3.8022,131.5,131.46,9.37]
[1726643782720,8.3107,131.52,131.48,9.37]
[1726643783222,13.1712,131.53,131.49,9.37]
[1726643783617,13.1712,131.53,131.49,13.1721]
[1726643784615,13.1715,131.52,131.49,3.8021]
[1726643795730,3.8013,131.53,131.5,3.802]
[1726643795933,9.37,131.54,131.5,9.37]
[1726643796122,9.37,131.55,131.5,9.37]
[1726643796329,13.1707,131.55,131.52,3.8013]
[1726643797730,3.8009,131.54,131.51,3.8016]
[1726643799329,13.1712,131.53,131.5,3.8019]
[1726643800432,3.8012,131.53,131.5,3.8019]
[1726643800631,9.37,131.51,131.49,3.8021]
[1726643815853,13.1715,131.52,131.49,3.8021]
[1726643816052,13.1718,131.51,131.44,5.7073]
[1726643816252,3.8018,131.51,131.47,9.37]
[1726643816453,13.1718,131.51,131.47,9.37]
[1726643817050,13.1718,131.51,131.47,13.1727]
[1726643817354,13.1718,131.51,131.47,3.8027]
[1726643817856,13.1721,131.5,131.47,3.8027]
[1726643818054,13.1721,131.5,131.46,13.1731]
[1726643819653,13.1721,131.5,131.47,3.8028]
[1726643822051,13.1723,131.49,131.46,3.8031]
[1726643822960,3.8023,131.49,131.46,3.8031]
[1726643823155,13.1723,131.49,131.46,3.8031]
[1726643823362,3.8023,131.49,131.46,3.8031]
[1726643823561,13.1723,131.49,131.46,3.8031]
[1726643824262,3.8023,131.49,131.46,3.8031]
[1726643824460,13.1723,131.49,131.46,3.8031]
[1726643826062,3.8022,131.5,131.46,13.1731]
[1726643826266,3.8022,131.5,131.44,5.7073]
[1726643826267,3.8022,131.5,131.47,13.1728]
[1726643827655,13.1722,131.5,131.47,3.8028]
[1726643827857,9.37,131.49,131.47,3.8028]
[1726643828060,9.37,131.48,131.46,3.8031]
[1726643828664,9.37,131.48,131.45,3.8033]
[1726643830570,3.8025,131.49,131.45,3.8033]
[1726643830758,9.37,131.48,131.45,3.8033]
[1726643833162,3.8025,131.49,131.45,3.8033]
[1726643833364,13.1725,131.49,131.45,3.8033]
[1726643834365,9.37,131.47,131.44,3.8037]
[1726643834570,9.37,131.46,131.4,5.5369]
[1726643834866,9.37,131.47,131.44,3.8036]
[1726643835065,9.37,131.47,131.42,9.37]
[1726643835265,13.1731,131.47,131.43,5.35083295]
[1726643835467,13.1731,131.47,131.43,3.8039]
[1726643835764,9.37,131.45,131.43,3.8039]
[1726643836168,13.1732,131.46,131.43,3.8039]
[1726643836369,9.37,131.46,131.43,3.8039]
[1726643841970,3.8033,131.46,131.43,3.8039]
[1726643842169,9.37,131.45,131.43,3.8039]
[1726643845372,3.8033,131.46,131.42,3.8043]
[1726643845576,3.8033,131.46,131.4,8.4337]
[1726643845577,23.8337,131.52,131.39,9.37]
[1726643845773,9.37,131.42,131.38,9.37]
[1726643846280,3.8039,131.44,131.39,9.37]
[1726643846281,9.37,131.44,131.39,9.37]
[1726643846478,9.37,131.44,131.41,3.8045]
[1726643847477,9.37,131.43,131.41,3.8045]
[1726643847678,9.37,131.42,131.4,3.8048]
[1726643848277,3.8038,131.44,131.4,3.8048]
[1726643848471,9.37,131.42,131.4,3.8048]
[1726643849975,9.37,131.43,131.4,3.8048]
[1726643850575,9.37,131.43,131.41,3.8046]
[1726643850977,13.1736,131.45,131.41,13.1746]
[1726643851185,9.37,131.45,131.42,3.8042]
[1726643852078,13.1735,131.45,131.42,3.8042]
[1726643854077,9.37,131.44,131.42,3.8042]
[1726643857276,13.1738,131.44,131.41,3.8046]
[1726643858287,9.37,131.42,131.41,3.8046]
[1726643859394,9.37,131.42,131.38,9.37]
[1726643859395,9.37,131.42,131.4,3.8047]
[1726643859581,9.37,131.41,131.37,13.18412608]
[1726643859976,9.37,131.41,131.39,3.8051]
[1726643860186,9.37,131.42,131.38,9.37]
[1726643860890,9.37,131.43,131.4,3.8047]
[1726643861190,9.37,131.43,131.39,9.37]
[1726643862089,9.37,131.43,131.4,3.8047]
[1726643863392,13.1741,131.43,131.4,3.8047]
[1726643864386,15.22,131.5,131.42,3.8042]
[1726643864597,9.37,131.46,131.42,3.8042]
[1726643865592,3.8035,131.45,131.42,3.8042]
[1726643865789,13.1735,131.45,131.42,3.8042]
[1726643867690,9.37,131.45,131.43,3.804]
[1726643868497,15.22,131.5,131.44,3.8037]
[1726643868498,3.803,131.47,131.44,3.8037]
[1726643868692,3.803,131.47,131.42,9.37]
[1726643868996,9.37,131.46,131.42,9.37]
[1726643869392,9.37,131.46,131.43,3.8038]
[1726643869690,9.37,131.44,131.4,9.37]
[1726643870492,9.37,131.44,131.41,3.8046]
[1726643871894,9.37,131.43,131.41,3.8046]
[1726643873598,9.37,131.43,131.39,9.37]
[1726643874300,9.37,131.43,131.4,3.8048]
[1726643879700,9.37,131.42,131.39,3.8051]
[1726643880206,9.37,131.42,131.37,13.10478178]
[1726643880398,13.1741,131.43,131.39,9.37]
[1726643881505,13.1741,131.43,131.39,13.175]
[1726643885701,9.37,131.42,131.39,3.805]
[1726643888110,13.1744,131.42,131.39,3.805]
[1726643888408,9.37,131.42,131.39,3.805]
[1726643889711,3.8043,131.43,131.39,3.805]
[1726643890007,9.37,131.41,131.39,3.805]
[1726643891109,3.8043,131.43,131.39,3.805]
[1726643891300,9.37,131.42,131.4,3.8049]
[1726643896709,3.8043,131.43,131.4,3.8049]
[1726643896915,13.1743,131.43,131.4,3.8049]
[1726643910910,18.98293772,131.53,131.42,9.37]
[1726643911115,9.37,131.47,131.42,9.37]
[1726643911615,13.1732,131.47,131.44,3.8036]
[1726643912820,9.37,131.46,131.44,3.8036]
[1726643913015,9.37,131.45,131.43,3.804]
[1726643913321,9.37,131.45,131.4,9.37]
[1726643913522,9.37,131.45,131.41,5.35209318]
[1726643913721,9.37,131.45,131.4,9.37]
[1726643914020,9.37,131.43,131.41,5.35209794]
[1726643914323,9.37,131.43,131.39,9.37]
[1726643914521,9.37,131.43,131.4,12.26657446]
[1726643914819,9.37,131.43,131.39,9.37]
[1726643915019,9.37,131.43,131.41,3.8044]
[1726643916618,13.1737,131.45,131.4,9.37]
[1726643916817,9.37,131.45,131.42,3.8043]
[1726643917724,13.1735,131.45,131.42,3.8043]
[1726643918723,9.37,131.46,131.42,9.37]
[1726643919725,9.37,131.46,131.41,9.37]
[1726643919921,13.1732,131.46,131.43,3.8039]
[1726643922821,3.8035,131.45,131.42,3.8043]
[1726643923028,9.37,131.44,131.42,3.8043]
[1726643924526,13.1738,131.44,131.42,3.8043]
[1726643928626,9.37,131.44,131.42,3.8043]
[1726643934125,9.37,131.45,131.43,3.804]
[1726643935531,9.37,131.45,131.44,3.8038]
[1726643935828,9.37,131.47,131.42,9.37]
[1726643936033,13.173,131.47,131.44,3.8036]
[1726643936225,9.37,131.46,131.44,3.8036]
[1726643941734,3.8032,131.46,131.44,3.8036]
[1726643942040,9.37,131.45,131.44,3.8036]
[1726643943034,9.37,131.45,131.43,3.8039]
[1726643944234,9.37,131.44,131.43,3.8039]
[1726643947940,9.37,131.45,131.43,3.8039]
[1726643950040,8.1749,131.52,131.43,3.8039]
[1726643950041,3.8027,131.48,131.43,9.37]
[1726643950245,9.37,131.48,131.43,9.37]
[1726643951748,13.1726,131.48,131.45,3.8033]
[1726643952145,3.8026,131.48,131.45,3.8033]
[1726643952445,9.37,131.47,131.45,3.8033]
[1726643958448,9.37,131.46,131.39,8.6495]
[1726643958646,9.37,131.44,131.4,20.82152939]
[1726643958851,9.37,131.44,131.41,20.82152939]
[1726643959045,9.37,131.44,131.42,9.15418893]
[1726643959246,9.37,131.44,131.42,3.8041]
[1726643961154,3.8034,131.46,131.43,3.8041]
[1726643961454,9.37,131.45,131.43,3.8041]
[1726643968559,9.37,131.45,131.44,3.8038]
[1726643972658,3.8025,131.49,131.45,3.8033]
[1726643972865,9.37,131.46,131.41,9.37]
[1726643973068,9.37,131.46,131.42,5.35207944]
[1726643973269,9.37,131.46,131.44,3.8037]
[1726643974660,9.37,131.46,131.43,3.8039]
[1726643982967,13.1733,131.46,131.43,3.8039]
[1726643984058,9.37,131.46,131.43,3.8039]
[1726643990869,13.1732,131.46,131.43,3.8039]
[1726643991172,9.37,131.45,131.43,3.8039]
[1726643991373,9.37,131.45,131.42,3.8042]
[1726643991770,9.37,131.45,131.41,9.37]
[1726643991967,9.37,131.45,131.42,5.35265281]
[1726643992167,9.37,131.45,131.41,9.37]
[1726643992369,9.37,131.45,131.42,12.26633335]
[1726643992570,9.37,131.45,131.43,3.804]
[1726643995775,9.37,131.46,131.43,3.804]
[1726643996764,3.803,131.47,131.43,3.804]
[1726643996965,9.37,131.46,131.43,3.804]
[1726644000274,9.37,131.46,131.44,3.8037]
[1726644002481,13.1733,131.46,131.39,8.6495]
[1726644002677,9.37,131.46,131.4,20.82235039]
[1726644002873,9.37,131.46,131.41,20.82235039]
[1726644003074,9.37,131.46,131.43,3.8039]
[1726644007385,9.37,131.46,131.44,3.8037]
[1726644010497,23.3949,131.52,131.42,9.37]
[1726644010678,9.37,131.48,131.44,9.37]
[1726644010884,9.37,131.48,131.45,9.37]
[1726644011083,9.37,131.48,131.46,3.8032]
[1726644011279,9.37,131.49,131.45,9.37]
[1726644011586,9.37,131.51,131.48,3.8025]
[1726644013689,9.37,131.51,131.49,3.8023]
[1726644014594,13.1718,131.51,131.48,3.8025]
[1726644015991,9.37,131.5,131.48,3.8025]
[1726644016188,9.37,131.49,131.39,8.6495]
[1726644016400,9.37,131.49,131.44,9.37]
[1726644016599,9.37,131.49,131.45,5.34557808]
[1726644016798,9.37,131.49,131.46,3.8029]
[1726644018804,9.37,131.47,131.45,3.8034]
[1726644019002,8.1749,131.52,131.45,3.8034]
[1726644019003,9.37,131.46,131.45,3.8034]
[1726644019206,9.37,131.46,131.42,9.37]
[1726644019404,9.37,131.46,131.44,3.8037]
[1726644022494,9.37,131.46,131.43,3.8039]
[1726644022699,9.37,131.44,131.39,8.6495]
[1726644022900,9.37,131.44,131.4,30.18581384]
[1726644023098,9.37,131.44,131.42,3.8042]
[1726644025205,3.803,131.47,131.43,3.804]
[1726644025403,9.37,131.45,131.43,3.804]
[1726644026803,3.803,131.47,131.43,3.804]
[1726644027004,9.37,131.46,131.43,3.804]
[1726644031012,9.37,131.45,131.42,3.8042]
[1726644031417,9.37,131.43,131.41,3.8044]
[1726644038012,9.37,131.42,131.31,7.6148]
[1726644038220,9.37,131.42,131.37,9.37]
[1726644038414,9.37,131.42,131.38,5.34904764]
[1726644038613,13.1744,131.42,131.38,3.8053]
[1726644043325,3.8044,131.42,131.38,3.8053]
[1726644043522,13.1744,131.42,131.38,3.8053]
[1726644043712,13.1744,131.42,131.39,3.8052]
[1726644043917,9.37,131.42,131.39,3.8052]
[1726644046817,3.8042,131.43,131.4,3.8049]
[1726644047023,13.1742,131.43,131.4,3.8049]
[1726644052022,9.37,131.42,131.4,3.8049]
[1726644052927,9.37,131.41,131.4,3.8049]
[1726644059430,9.37,131.41,131.39,3.8051]
[1726644060026,9.37,131.4,131.38,3.8055]
[1726644060635,9.37,131.41,131.38,3.8055]
[1726644061536,9.37,131.4,131.38,3.8055]
[1726644061734,9.37,131.39,131.33,5.4551]
[1726644061936,9.37,131.39,131.34,20.084649]
[1726644062237,9.37,131.39,131.34,13.17357822]
[1726644063034,9.37,131.39,131.36,3.8059]
[1726644066538,9.37,131.38,131.35,3.8062]
[1726644068346,13.1756,131.38,131.34,3.8065]
[1726644071241,13.1756,131.38,131.35,3.8063]
[1726644071645,8.3627,131.45,131.35,9.37]
[1726644071845,9.37,131.4,131.36,3.806]
[1726644072038,13.1751,131.4,131.36,3.806]
[1726644073447,3.8052,131.39,131.36,3.806]
[1726644073651,13.1752,131.39,131.36,3.806]
[1726644075047,13.1752,131.39,131.35,3.8062]
[1726644075254,9.37,131.37,131.35,3.8062]
[1726644080954,9.37,131.36,131.34,3.8065]
[1726644081152,9.37,131.35,131.32,2.6488]
[1726644081451,9.37,131.35,131.33,3.8068]
[1726644083655,3.8059,131.37,131.33,3.8068]
[1726644083952,9.37,131.36,131.33,3.8068]
[1726644095755,9.37,131.36,131.3,15.48292121]
[1726644095957,9.37,131.37,131.33,9.37]
[1726644096766,13.1758,131.37,131.34,3.8065]
[1726644097066,9.37,131.36,131.34,3.8065]
[1726644107165,9.37,131.37,131.33,9.37]
[1726644107367,15.22,131.44,131.36,9.37]
[1726644107574,9.37,131.4,131.38,3.8055]
[1726644108373,9.37,131.39,131.37,3.8057]
[1726644110264,13.175,131.4,131.37,3.8057]
[1726644111764,9.37,131.4,131.37,3.8057]
[1726644112566,9.37,131.4,131.36,9.37]
[1726644112770,9.37,131.41,131.37,9.37]
[1726644113368,9.37,131.41,131.38,3.8054]
[1726644119575,3.8042,131.43,131.38,9.37]
[1726644119779,9.37,131.42,131.38,9.37]
[1726644120177,9.37,131.42,131.4,3.8049]
[1726644127185,13.1744,131.42,131.39,3.8051]
[1726644127487,9.37,131.41,131.37,9.37]
[1726644127683,13.1748,131.41,131.38,3.8054]
[1726644128479,13.1748,131.41,131.37,3.8057]
[1726644128880,13.175,131.4,131.37,3.8057]
[1726644129085,13.175,131.4,131.36,3.8059]
[1726644129286,13.175,131.4,131.35,9.37]
[1726644129486,13.175,131.4,131.36,5.34927258]
[1726644129687,13.175,131.4,131.35,9.37]
[1726644129891,13.175,131.4,131.36,5.34937592]
[1726644130090,13.175,131.4,131.35,9.37]
[1726644130292,13.175,131.4,131.36,9.37]
[1726644130689,13.175,131.4,131.36,14.71936295]
[1726644130886,13.1747,131.41,131.37,9.37]
[1726644131591,13.1745,131.42,131.38,13.1755]
[1726644134596,9.37,131.4,131.37,3.8057]
[1726644135395,9.37,131.39,131.36,3.806]
[1726644136897,13.1753,131.39,131.36,3.806]
[1726644137600,13.1753,131.39,131.35,21.73520759]
[1726644138295,13.1753,131.39,131.36,5.34748371]
[1726644138695,13.1753,131.39,131.35,21.73520759]
[1726644139301,3.8055,131.38,131.35,21.73520759]
[1726644141000,13.1755,131.38,131.35,21.73520759]
[1726644141199,13.1755,131.38,131.35,12.36520759]
[1726644141401,13.1759,131.37,131.35,8.55890759]
[1726644141792,9.37,131.36,131.35,8.55890759]
[1726644142104,13.1761,131.36,131.35,8.55890759]
[1726644144395,3.8065,131.35,131.31,3.8074]
[1726644144598,9.37,131.34,131.31,3.8074]
[1726644144902,9.37,131.34,131.32,3.8072]
[1726644148014,9.37,131.33,131.27,8.2824]
[1726644148203,9.37,131.33,131.29,9.37]
[1726644148506,9.37,131.33,131.3,3.8077]
[1726644148808,13.177,131.33,131.3,3.8077]
[1726644149196,9.37,131.33,131.3,3.8077]
[1726644149499,13.1768,131.34,131.3,13.1777]
[1726644149699,13.1768,131.34,131.3,3.8077]
[1726644149904,13.1768,131.34,131.3,13.1777]
[1726644153708,9.37,131.31,131.27,8.2824]
[1726644153911,9.37,131.3,131.27,5.5548]
[1726644154221,9.37,131.31,131.27,5.5548]
[1726644155012,9.37,131.31,131.28,3.8083]
[1726644155214,9.37,131.31,131.27,5.5548]
[1726644155607,9.37,131.31,131.28,3.8083]
[1726644156003,9.37,131.33,131.29,9.37]
[1726644157917,9.37,131.33,131.29,13.1779]
[1726644159919,9.37,131.33,131.3,3.8078]
[1726644162816,9.37,131.33,131.31,3.8075]
[1726644163613,9.37,131.34,131.31,3.8075]
[1726644163814,9.37,131.35,131.32,3.8071]
[1726644164417,3.8066,131.35,131.3,9.37]
[1726644164719,9.37,131.34,131.3,9.37]
[1726644165219,9.37,131.34,131.31,3.8075]
[1726644166414,9.37,131.34,131.32,3.8072]
[1726644174925,9.37,131.35,131.32,3.8072]
[1726644177827,13.1764,131.35,131.32,3.8072]
[1726644178128,9.37,131.34,131.32,3.8072]
[1726644178322,13.1764,131.35,131.32,3.8072]
[1726644183730,9.37,131.34,131.32,3.8072]
[1726644187435,9.37,131.35,131.32,3.8072]
[1726644188035,9.37,131.37,131.33,9.37]
[1726644188531,9.37,131.37,131.34,3.8065]
[1726644188739,9.37,131.36,131.27,5.5548]
[1726644189039,9.37,131.36,131.32,9.37]
[1726644189335,9.37,131.37,131.34,9.37]
[1726644189530,13.1754,131.39,131.35,13.1762]
[1726644189731,9.37,131.4,131.36,9.37]
[1726644190231,9.37,131.4,131.37,3.8057]
[1726644191236,9.37,131.4,131.37,3.4057]
[1726644196629,9.37,131.4,131.38,3.8055]
[1726644196835,5.4827,131.43,131.37,9.37]
[1726644196836,13.1745,131.42,131.37,9.37]
[1726644197845,13.1745,131.42,131.39,3.8051]
[1726644201743,13.1745,131.42,131.38,3.8054]
[1726644202445,9.37,131.41,131.38,3.8054]
[1726644203444,13.1747,131.41,131.38,3.8054]
[1726644211338,13.1747,131.41,131.37,13.1757]
[1726644212951,9.37,131.4,131.37,3.8057]
[1726644215249,9.37,131.4,131.36,9.37]
[1726644215250,13.175,131.4,131.36,9.37]
[1726644216545,13.1752,131.39,131.35,9.37]
[1726644217548,13.1752,131.39,131.35,13.1763]
[1726644219557,13.1752,131.39,131.36,3.806]
[1726644221463,3.8052,131.39,131.36,3.806]
[1726644221652,13.1751,131.4,131.36,13.176]
[1726644222266,9.37,131.4,131.37,3.8056]
[1726644225263,13.1748,131.41,131.37,13.1756]
[1726644226455,5.4827,131.43,131.38,9.37]
[1726644226456,9.37,131.43,131.38,9.37]
[1726644226859,3.8046,131.42,131.38,13.1754]
[1726644227062,3.8046,131.42,131.38,9.37]
[1726644227760,13.1741,131.43,131.38,9.37]
[1726644228562,13.1741,131.43,131.39,3.8051]
[1726644229067,13.1741,131.43,131.4,3.8048]
[1726644231378,3.8044,131.42,131.4,3.8048]
[1726644232572,13.1744,131.42,131.39,3.8051]
[1726644236070,2.7485,131.45,131.35,6.96931628]
[1726644236275,2.7485,131.45,131.34,1.7397]
[1726644236276,9.37,131.39,131.34,9.37]
[1726644236478,13.1754,131.39,131.36,3.806]
[1726644239681,13.1754,131.39,131.35,3.8062]
[1726644239979,3.8055,131.38,131.35,3.8062]
[1726644242273,3.8053,131.39,131.36,13.1761]
[1726644246385,13.1751,131.4,131.36,13.1761]
[1726644248980,13.1753,131.39,131.35,3.8063]
[1726644249382,9.37,131.39,131.35,3.8063]
[1726644249584,3.8056,131.38,131.35,3.8063]
[1726644250285,13.1754,131.39,131.35,3.8063]
[1726644250690,9.37,131.39,131.35,3.8063]
[1726644251386,13.1757,131.38,131.35,3.8063]
[1726644251579,13.1757,131.38,131.33,5.4276]
[1726644251780,13.1757,131.38,131.34,10.82757773]
[1726644251781,9.37,131.38,131.34,10.82757773]
[1726644251983,9.37,131.38,131.34,3.8066]
[1726644252184,2.7485,131.45,131.34,3.8066]
[1726644252385,9.37,131.36,131.33,18.6045]
[1726644253387,9.37,131.36,131.33,15.918]
[1726644256993,13.1761,131.36,131.33,6.548]
[1726644259897,9.37,131.34,131.3,1.809]
[1726644260288,13.1768,131.34,131.3,5.6167]
[1726644260686,3.807,131.33,131.29,14.8351]
[1726644260891,9.37,131.32,131.3,7.02781592]
[1726644261200,9.37,131.32,131.29,3.8079]
[1726644261691,13.1773,131.32,131.29,3.8079]
[1726644264196,9.37,131.31,131.28,3.8083]
[1726644264393,9.37,131.3,131.26,12.8739]
[1726644264592,9.37,131.3,131.27,7.02977805]
[1726644264788,9.37,131.3,131.26,3.5039]
[1726644264998,13.1778,131.3,131.27,10.8391442]
[1726644265295,13.1778,131.3,131.27,3.8086]
[1726644273606,13.1786,131.28,131.26,1.6823]
[1726644273805,9.37,131.28,131.24,1.744]
[1726644274303,9.37,131.27,131.24,3.8095]
[1726644275307,9.37,131.27,131.25,3.8093]
[1726644275504,13.1787,131.27,131.21,3.4652]
[1726644275707,13.1787,131.27,131.23,3.8097]
[1726644275906,9.37,131.27,131.23,9.37]
[1726644276509,9.37,131.27,131.24,3.8094]
[1726644280412,3.8088,131.27,131.23,3.8096]
[1726644280711,9.37,131.25,131.23,3.8096]
[1726644284015,9.37,131.26,131.23,3.8096]
[1726644284211,3.8083,131.29,131.25,3.8093]
[1726644284515,9.37,131.28,131.24,9.37]
[1726644284712,9.37,131.27,131.24,9.37]
[1726644285808,9.37,131.27,131.24,3.8094]
[1726644286918,13.1787,131.27,131.24,3.8094]
[1726644287610,9.37,131.27,131.24,3.8094]
[1726644287810,15.22,131.35,131.26,3.809]
[1726644288009,15.22,131.35,131.24,9.37]
[1726644288208,13.1781,131.29,131.25,9.37]
[1726644288918,3.8081,131.29,131.26,3.8088]
[1726644289118,9.37,131.28,131.26,3.8088]
[1726644289513,3.8078,131.31,131.27,3.8086]
[1726644289714,9.37,131.29,131.27,3.8086]
[1726644291817,9.37,131.28,131.27,3.8086]
[1726644292917,9.37,131.28,131.26,3.8089]
[1726644294821,9.37,131.28,131.25,5.5333]
[1726644295627,9.37,131.27,131.25,5.5333]
[1726644296331,9.37,131.26,131.21,1.8148]
[1726644296523,9.37,131.25,131.22,3.85954389]
[1726644296724,9.37,131.25,131.22,13.22954389]
[1726644296930,9.37,131.26,131.23,3.8097]
[1726644297834,3.8086,131.28,131.24,3.8095]
[1726644298029,9.37,131.28,131.24,9.37]
[1726644298425,9.37,131.27,131.24,3.8095]
[1726644300328,15.24,131.35,131.24,9.37]
[1726644300520,9.37,131.29,131.24,9.37]
[1726644300723,9.37,131.29,131.26,3.8089]
[1726644304741,13.1781,131.29,131.26,3.8089]
[1726644304946,9.37,131.28,131.24,3.89823818]
[1726644305241,13.1785,131.28,131.23,9.37]
[1726644305430,13.1785,131.28,131.24,3.8093]
[1726644305632,13.1785,131.28,131.24,7.63036275]
[1726644305843,9.37,131.28,131.24,13.19106275]
[1726644306341,9.37,131.28,131.25,3.8091]
[1726644310340,13.1784,131.28,131.25,3.8091]
[1726644310645,13.1784,131.28,131.24,3.8094]